bitfinex-derivatives/quotes_SOLF0:USTF0_20250117
["timestamp","ask_amount","ask_price","bid_price","bid_amount"]
[1737107886227,4.6398,215.59,215.54,4.6405]
[1737107888232,153.13,215.7,215.51,1.4733]
[1737107888436,4.6399,215.58,215.53,4.6408]
[1737107889337,4.6399,215.58,215.51,1.4733]
[1737107889542,4.6399,215.58,215.54,4.6406]
[1737107889941,4.6393,215.6,215.56,4.64]
[1737107890442,4.6393,215.6,215.51,1.4733]
[1737107892142,4.6393,215.6,215.56,4.64]
[1737107892341,4.6393,215.6,215.51,1.4733]
[1737107892942,4.6393,215.6,215.56,4.64]
[1737107893442,153.13,215.7,215.51,1.4733]
[1737107893641,9.2748,215.69,215.54,4.6406]
[1737107894341,1.5285,215.68,215.54,4.6406]
[1737107894941,4.6399,215.58,215.54,4.6406]
[1737107895443,2.4142,215.67,215.51,1.4733]
[1737107895741,4.639,215.62,215.5,3.0926]
[1737107895936,4.639,215.62,215.51,1.4657]
[1737107896136,4.639,215.62,215.51,6.2857]
[1737107896342,4.639,215.62,215.58,4.6397]
[1737107897442,4.6391,215.61,215.58,4.6397]
[1737107897741,4.6391,215.61,215.57,4.6398]
[1737107901848,4.6391,215.61,215.51,6.2857]
[1737107902052,4.6391,215.61,215.58,4.6397]
[1737107903044,192.79509404,215.83,215.51,6.2857]
[1737107903243,1.4431,215.81,215.51,201.2857]
[1737107903950,4.6367,215.72,215.67,4.6378]
[1737107904153,1.4431,215.81,215.61,4.82]
[1737107904542,4.6374,215.7,215.64,4.6384]
[1737107905248,1.4431,215.81,215.64,4.6384]
[1737107905549,167.06,215.8,215.59,4.82]
[1737107905848,4.638,215.67,215.59,4.82]
[1737107906152,4.638,215.67,215.62,4.6387]
[1737107906553,4.638,215.67,215.59,4.82]
[1737107906753,4.638,215.67,215.61,4.639]
[1737107907053,4.638,215.67,215.59,4.82]
[1737107907949,4.638,215.67,215.62,4.6387]
[1737107913960,1.4349,215.75,215.62,4.6387]
[1737107914162,4.6379,215.67,215.59,4.82]
[1737107915161,4.6382,215.66,215.59,4.82]
[1737107915862,4.6382,215.66,215.61,4.6391]
[1737107916062,4.6382,215.66,215.59,4.82]
[1737107916361,4.6378,215.68,215.64,4.6383]
[1737107919360,4.6378,215.68,215.6,1.5287]
[1737107919560,4.6378,215.68,215.65,4.6382]
[1737107920157,1.4349,215.75,215.6,1.5287]
[1737107920356,4.6385,215.65,215.6,1.5287]
[1737107921065,1.4349,215.75,215.6,1.5287]
[1737107921066,4.6387,215.64,215.6,1.5287]
[1737107921266,9.2729,215.74,215.6,1.5287]
[1737107921466,9.2729,215.74,215.54,4.82]
[1737107921670,1.4305,215.73,215.55,1.459]
[1737107921856,4.6388,215.63,215.58,4.6396]
[1737107922262,1.4305,215.73,215.58,4.6396]
[1737107922966,4.6389,215.62,215.57,4.6399]
[1737107923268,9.2738,215.72,215.55,1.459]
[1737107923771,0.8557,215.71,215.56,4.6402]
[1737107924068,0.8557,215.71,215.55,1.459]
[1737107924266,0.8557,215.71,215.56,4.64]
[1737107924668,4.6395,215.6,215.55,1.459]
[1737107925664,4.6395,215.6,215.55,6.0993]
[1737107926070,0.8557,215.71,215.55,1.459]
[1737107926269,9.2745,215.7,215.55,1.459]
[1737107926569,0.8557,215.71,215.55,1.459]
[1737107926966,4.6399,215.58,215.55,1.459]
[1737107927562,1.4394,215.68,215.55,1.459]
[1737107927873,1.4394,215.68,215.55,6.0993]
[1737107929070,4.6396,215.59,215.55,6.0993]
[1737107930171,4.6398,215.58,215.55,6.0993]
[1737107930371,4.6398,215.58,215.55,1.459]
[1737107931974,4.6402,215.56,215.55,1.459]
[1737107933578,4.6405,215.55,215.51,48.53445666]
[1737107934977,9.277,215.64,215.51,1.4657]
[1737107935178,1.4497,215.65,215.51,1.4657]
[1737107935374,0.8582,215.64,215.49,6.74113]
[1737107935680,9.2774,215.63,215.49,6.74113]
[1737107936680,4.6407,215.54,215.5,4.6415]
[1737107938783,9.2774,215.63,215.49,6.74113]
[1737107938981,4.6411,215.52,215.49,11.38283]
[1737107939483,9.2774,215.63,215.49,6.74113]
[1737107939785,9.2774,215.63,215.5,4.6414]
[1737107940084,4.6408,215.54,215.5,4.6414]
[1737107940783,4.6408,215.53,215.5,4.6414]
[1737107947891,4.6408,215.53,215.49,11.38273]
[1737107952093,4.6408,215.53,215.5,3.85552203]
[1737107952296,4.6408,215.53,215.49,11.38273]
[1737107952497,4.6408,215.53,215.5,3.85552204]
[1737107952700,4.6408,215.53,215.49,11.38273]
[1737107953690,4.6408,215.53,215.5,3.85531626]
[1737107953891,4.6408,215.53,215.49,11.38273]
[1737107954091,4.6408,215.53,215.5,3.85546699]
[1737107954388,4.6408,215.53,215.49,11.38273]
[1737107954593,4.6408,215.53,215.5,3.85491954]
[1737107954793,4.6408,215.53,215.49,11.38273]
[1737107954994,4.6408,215.53,215.5,3.85491954]
[1737107955193,4.6408,215.53,215.49,11.38273]
[1737107955394,4.6408,215.53,215.5,3.85491993]
[1737107955589,4.6412,215.52,215.49,6.74113]
[1737107955789,13.5052662,215.62,215.5,3.85500955]
[1737107955998,13.5052662,215.62,215.49,6.74113]
[1737107956903,4.6412,215.52,215.49,6.74113]
[1737107959504,13.5052662,215.62,215.49,6.74113]
[1737107959798,5.87080905,215.62,215.53,4.6406]
[1737107960202,0.8582,215.64,215.53,4.6406]
[1737107960704,4.6401,215.57,215.54,4.6406]
[1737107967807,1.4497,215.65,215.54,4.6406]
[1737107968007,4.6402,215.56,215.54,4.6406]
[1737107969505,4.6402,215.56,215.5,1.4395]
[1737107969806,4.6402,215.56,215.53,4.6408]
[1737107974906,4.6402,215.56,215.52,4.641]
[1737107978805,4.6404,215.55,215.52,4.641]
[1737107981410,4.6404,215.55,215.51,4.6411]
[1737107981609,4.6404,215.55,215.5,1.4395]
[1737107982709,4.6404,215.55,215.51,3.84921287]
[1737107982912,4.6404,215.55,215.5,1.4395]
[1737107983110,4.6404,215.55,215.52,4.641]
[1737107989011,1.4497,215.65,215.52,4.641]
[1737107989310,4.6402,215.56,215.52,4.641]
[1737107990213,4.6412,215.52,215.49,6.74113]
[1737107990412,9.08415715,215.65,215.49,6.74113]
[1737107990612,1.4497,215.65,215.49,6.74113]
[1737107991010,4.6414,215.51,215.49,6.74113]
[1737107991311,7.63445715,215.64,215.49,6.74113]
[1737107991514,4.6413,215.51,215.49,6.74113]
[1737107992913,4.6415,215.5,215.49,6.74113]
[1737107997516,4.6415,215.5,215.49,4.37903]
[1737107997714,4.6415,215.5,215.49,3.46483]
[1737107998715,13.5052662,215.56,215.32,6.46562161]
[1737107998916,5.87080905,215.56,215.33,3.84533771]
[1737107999218,4.6424,215.46,215.42,4.643]
[1737108001511,4.641,215.53,215.48,4.6418]
[1737108001718,5.87080905,215.58,215.48,4.6418]
[1737108002013,13.46553864,215.6,215.43,4.5358]
[1737108002311,4.6413,215.51,215.47,4.642]
[1737108002817,7.59472959,215.59,215.43,4.5358]
[1737108003013,4.6423,215.46,215.43,7.6404]
[1737108004110,13.46553864,215.59,215.43,2.9976]
[1737108004313,13.46553864,215.59,215.44,4.6426]
[1737108004619,13.46553864,215.59,215.43,2.9976]
[1737108004814,4.6405,215.55,215.45,4.6423]
[1737108005015,13.46553864,215.59,215.43,2.9976]
[1737108006816,4.6423,215.46,215.43,7.6405]
[1737108008322,4.6426,215.45,215.43,2.9976]
[1737108009420,4.6408,215.53,215.43,2.9976]
[1737108009621,9.2801,215.57,215.43,2.9976]
[1737108010022,4.6423,215.47,215.43,7.6405]
[1737108010427,9.2801,215.57,215.43,7.6405]
[1737108011633,4.6423,215.47,215.43,2.9976]
[1737108011834,4.6423,215.47,215.44,4.6427]
[1737108012334,4.6424,215.46,215.43,7.6405]
[1737108014138,4.6424,215.46,215.43,2.9976]
[1737108014634,4.6417,215.49,215.43,2.9976]
[1737108014936,9.2801,215.57,215.43,2.9976]
[1737108015138,4.6423,215.47,215.43,2.9976]
[1737108015739,4.6425,215.46,215.43,2.9976]
[1737108015939,9.2801,215.57,215.43,2.9976]
[1737108016238,4.6425,215.46,215.43,2.9976]
[1737108017536,9.2801,215.57,215.43,2.9976]
[1737108018241,9.2801,215.57,215.46,4.6422]
[1737108018939,4.6417,215.5,215.46,4.6422]
[1737108019133,9.2801,215.57,215.46,4.6422]
[1737108019633,4.6406,215.54,215.46,4.6422]
[1737108021438,4.6416,215.5,215.47,4.642]
[1737108022339,4.6417,215.49,215.47,4.642]
[1737108023341,4.6417,215.49,215.46,4.6422]
[1737108024131,4.6415,215.5,215.46,4.6422]
[1737108024734,4.6417,215.49,215.46,4.6422]
[1737108032045,13.42826375,215.56,215.43,2.9976]
[1737108032734,4.6424,215.46,215.43,7.6406]
[1737108033745,4.6428,215.44,215.41,4.6432]
[1737108033948,4.6428,215.44,215.38,4.82]
[1737108034246,4.6428,215.44,215.39,3.84477157]
[1737108034448,4.6428,215.44,215.4,4.6435]
[1737108035648,13.42826375,215.56,215.41,4.6434]
[1737108036550,13.42826375,215.56,215.38,4.82]
[1737108036752,13.42826375,215.56,215.39,3.84659322]
[1737108036955,13.42826375,215.56,215.38,4.82]
[1737108037141,13.42826375,215.56,215.39,3.84657314]
[1737108037346,4.6421,215.48,215.44,4.6427]
[1737108038352,4.6421,215.48,215.38,4.82]
[1737108038553,4.6417,215.49,215.45,4.6425]
[1737108039747,13.42826375,215.56,215.45,4.6425]
[1737108039952,4.6419,215.48,215.45,4.6425]
[1737108040252,13.42826375,215.56,215.38,4.82]
[1737108040448,4.642,215.48,215.39,3.84859997]
[1737108040750,4.642,215.48,215.4,3.84859997]
[1737108041053,4.642,215.48,215.41,3.84859997]
[1737108041256,4.642,215.48,215.42,3.84859997]
[1737108041450,4.642,215.48,215.38,4.82]
[1737108041650,4.642,215.48,215.39,3.84923564]
[1737108041852,4.642,215.48,215.4,3.84923564]
[1737108042052,4.642,215.48,215.44,4.6426]
[1737108044653,13.42826375,215.56,215.37,2.889]
[1737108044855,9.2809,215.55,215.38,3.85060164]
[1737108045052,16.86894641,215.55,215.37,2.889]
[1737108045248,7.58804641,215.54,215.39,4.6438]
[1737108045559,13.42826375,215.54,215.39,4.6438]
[1737108045760,13.42826375,215.54,215.37,2.889]
[1737108045957,4.6429,215.44,215.4,4.6436]
[1737108048563,4.643,215.43,215.39,4.6438]
[1737108053468,4.6432,215.42,215.38,4.644]
[1737108054767,13.42826375,215.52,215.35,3.55086335]
[1737108055064,9.2829,215.51,215.35,3.55086335]
[1737108055264,16.87094641,215.51,215.35,3.55086335]
[1737108055464,7.58804641,215.5,215.35,3.55086335]
[1737108055766,5.84021734,215.5,215.32,4.82]
[1737108055967,4.644,215.39,215.35,4.6446]
[1737108056866,13.42826375,215.5,215.31,4.8]
[1737108057159,13.42826375,215.5,215.28,4.3688]
[1737108057160,13.93,215.49,215.28,2.9336]
[1737108057360,23.214,215.48,215.28,2.9336]
[1737108057568,4.6447,215.35,215.28,7.5796]
[1737108058067,4.6447,215.35,215.25,3.55237352]
[1737108058866,4.6447,215.35,215.28,4.646]
[1737108059262,4.6447,215.35,215.25,3.55237352]
[1737108059871,4.82,215.43,215.25,3.55237352]
[1737108060166,4.82,215.43,215.34,4.85976]
[1737108060567,4.644,215.39,215.34,4.85976]
[1737108060767,9.284,215.48,215.34,4.85976]
[1737108061163,4.644,215.39,215.34,4.85976]
[1737108061668,16.80670366,215.48,215.34,4.85976]
[1737108061864,4.6443,215.37,215.34,4.85976]
[1737108062568,4.6443,215.37,215.34,0.21486]
[1737108063175,16.80670366,215.48,215.34,0.21486]
[1737108063370,4.644,215.39,215.34,4.85956]
[1737108063571,4.644,215.39,215.34,0.21486]
[1737108063975,4.644,215.39,215.34,4.85976]
[1737108064369,13.93,215.54,215.38,4.6441]
[1737108064370,4.6432,215.43,215.38,4.6441]
[1737108064572,4.82,215.52,215.34,0.21486]
[1737108065075,4.6434,215.42,215.37,4.6441]
[1737108065276,4.6434,215.42,215.34,0.21486]
[1737108065672,4.6434,215.42,215.38,4.644]
[1737108066972,4.82,215.52,215.37,4.6442]
[1737108067166,4.6435,215.41,215.37,4.6442]
[1737108068675,4.6444,215.37,215.34,0.21486]
[1737108068879,153.13,215.5,215.34,0.21486]
[1737108069278,9.2838,215.49,215.34,0.21486]
[1737108070478,4.6443,215.37,215.34,4.85976]
[1737108072474,4.6441,215.38,215.34,4.85976]
[1737108072678,9.2838,215.49,215.35,4.6447]
[1737108072876,9.2838,215.49,215.34,0.21486]
[1737108073478,4.6434,215.42,215.38,4.6439]
[1737108073782,86.94,215.53,215.34,0.21486]
[1737108073982,86.94,215.53,215.34,1.67416]
[1737108074177,4.6429,215.44,215.34,1.67416]
[1737108074880,4.6429,215.44,215.39,4.6437]
[1737108075877,4.6429,215.44,215.4,4.6436]
[1737108076878,4.6425,215.46,215.41,4.6432]
[1737108078285,4.6426,215.45,215.41,4.6432]
[1737108080677,4.6426,215.45,215.42,4.6432]
[1737108081085,4.6426,215.45,215.37,4.8]
[1737108081281,4.6426,215.45,215.41,4.6434]
[1737108082993,9.281,215.55,215.41,4.6434]
[1737108083193,4.6428,215.44,215.41,4.6434]
[1737108087095,4.6432,215.43,215.39,4.6437]
[1737108087287,13.33778364,215.54,215.39,4.6437]
[1737108087695,4.6431,215.43,215.39,4.6437]
[1737108087994,13.33778364,215.54,215.37,4.8]
[1737108088290,4.6436,215.41,215.37,4.8]
[1737108088691,4.6436,215.41,215.38,4.644]
[1737108089090,4.6438,215.4,215.34,1.67416]
[1737108089292,9.2826,215.51,215.34,1.67416]
[1737108089696,4.6441,215.38,215.34,0.21486]
[1737108089897,4.6441,215.38,215.34,4.85956]
[1737108090093,153.13,215.5,215.34,0.21486]
[1737108090391,7.53011571,215.49,215.34,0.21486]
[1737108090596,4.8,215.48,215.34,0.21486]
[1737108092395,4.6447,215.35,215.34,0.21486]
[1737108095802,4.6447,215.35,215.34,6e-05]
[1737108099603,4.6466,215.27,215.23,4.6473]
[1737108101804,4.6466,215.27,215.22,4.6475]
[1737108102603,4.6466,215.27,215.25,0.20083]
[1737108103005,153.13,215.37,215.25,0.20083]
[1737108103200,4.6466,215.26,215.25,0.20083]
[1737108110203,153.13,215.37,215.25,0.20083]
[1737108110907,4.6466,215.26,215.25,0.20083]
[1737108111311,9.2893,215.36,215.25,0.20083]
[1737108111514,4.6466,215.27,215.25,0.20083]
[1737108111715,9.2893,215.36,215.25,0.20083]
[1737108113110,4.6466,215.26,215.25,0.20083]
[1737108119811,4.6466,215.26,215.18,6.1393]
[1737108120012,4.6476,215.22,215.18,6.1393]
[1737108120212,153.13,215.33,215.18,1.491]
[1737108120614,4.6481,215.2,215.18,1.491]
[1737108120810,9.2908,215.32,215.18,6.1393]
[1737108122011,4.6479,215.21,215.18,6.1393]
[1737108122217,9.2908,215.32,215.18,1.491]
[1737108122820,4.6479,215.2,215.18,1.491]
[1737108123021,153.13,215.33,215.18,1.491]
[1737108123221,153.13,215.32,215.18,1.491]
[1737108123518,4.6481,215.19,215.18,1.491]
[1737108124119,4.6485,215.18,215.15,6.178]
[1737108124619,9.2921,215.29,215.15,1.529]
[1737108124825,4.6488,215.16,215.15,1.529]
[1737108125228,9.2929,215.27,215.13,1.4787]
[1737108125817,4.6495,215.13,215.09,4.6503]
[1737108126125,153.13,215.24,215.05,1.4787]
[1737108126325,153.13,215.24,215.06,1.4319]
[1737108126522,153.13,215.24,215.07,4.6507]
[1737108126523,4.6482,215.19,215.07,4.6507]
[1737108126725,153.13,215.24,215.07,4.6507]
[1737108127325,153.13,215.23,215.06,6.0828]
[1737108128030,4.6501,215.1,215.06,6.0828]
[1737108128930,4.6497,215.12,215.08,4.6505]
[1737108130426,4.6497,215.12,215.07,4.6507]
[1737108130632,153.13,215.23,215.07,4.6507]
[1737108130927,153.13,215.23,215.06,1.4319]
[1737108131526,153.13,215.23,215.1,4.6499]
[1737108131728,4.6494,215.13,215.06,1.4319]
[1737108131927,9.2964,215.19,214.99,25.86248644]
[1737108132127,9.2964,215.19,215.03,4.6514]
[1737108132332,4.6504,215.09,215.0,4.4359]
[1737108132731,4.6504,215.09,215.04,4.6512]
[1737108133131,9.2964,215.19,215.0,4.4359]
[1737108134324,9.2964,215.19,215.05,4.651]
[1737108135532,4.65,215.11,215.07,4.6505]
[1737108135737,9.2964,215.19,215.0,4.4359]
[1737108136635,9.2964,215.19,215.05,4.6511]
[1737108136636,4.6504,215.09,215.05,4.6511]
[1737108139046,4.6505,215.08,215.05,4.6511]
[1737108141246,4.6507,215.07,215.0,9.2559]
[1737108141947,4.6507,215.07,215.02,4.6518]
[1737108142147,4.6507,215.07,215.0,9.2559]
[1737108142338,9.2964,215.19,215.0,4.4359]
[1737108142544,167.06,215.18,215.0,2.9227]
[1737108143048,13.93,215.12,214.9,6.46562161]
[1737108143249,4.82,215.11,214.9,6.46562161]
[1737108143749,4.6517,215.03,214.97,4.6527]
[1737108144044,4.82,215.11,214.95,4.82]
[1737108144247,153.13,215.2,214.96,4.4913]
[1737108144450,4.82,215.19,214.96,4.4913]
[1737108144644,4.6501,215.1,214.96,4.4913]
[1737108144845,4.82,215.19,214.96,4.4913]
[1737108145042,18.75,215.19,214.96,4.4913]
[1737108145245,167.06,215.18,214.99,4.6522]
[1737108145545,167.06,215.18,214.96,4.4913]
[1737108146140,4.652,215.02,214.97,4.6528]
[1737108146339,167.06,215.15,214.96,4.4913]
[1737108147347,4.6524,215.0,214.96,3.0147]
[1737108148749,13.93,215.13,214.96,3.0147]
[1737108148945,153.13,215.13,214.96,3.0147]
[1737108149347,4.6513,215.05,215.0,4.6522]
[1737108149647,153.13,215.13,214.96,3.0147]
[1737108149950,4.6513,215.05,215.0,4.6522]
[1737108150546,153.13,215.13,215.0,4.6522]
[1737108150851,153.13,215.13,214.98,4.6525]
[1737108151243,4.652,215.02,214.98,4.6525]
[1737108151449,167.06,215.13,214.9,6.3425]
[1737108152251,18.75,215.12,214.95,4.6533]
[1737108152447,4.82,215.12,214.9,6.3425]
[1737108152847,4.652,215.01,214.97,4.6527]
[1737108159950,13.93,215.07,214.85,3.8180101]
[1737108160156,13.93,215.07,214.85,9.341]
[1737108160350,9.302,215.06,214.85,9.341]
[1737108160551,9.302,215.06,214.86,3.81867337]
[1737108160751,9.302,215.06,214.85,9.341]
[1737108160953,4.6529,214.97,214.93,4.6537]
[1737108161356,4.6535,214.95,214.91,4.654]
[1737108161660,4.6535,214.95,214.88,4.82]
[1737108161856,4.6535,214.95,214.87,4.82]
[1737108162057,4.6535,214.95,214.9,4.6542]
[1737108162459,4.6535,214.95,214.91,4.6541]
[1737108165664,4.82,215.03,214.85,4.521]
[1737108166263,4.6537,214.93,214.89,4.6545]
[1737108166558,4.82,215.03,214.85,4.521]
[1737108166764,4.6541,214.92,214.88,4.6548]
[1737108167064,4.82,215.03,214.85,4.521]
[1737108168163,153.13,215.02,214.85,4.521]
[1737108168363,162.4336,215.02,214.77,35.17658644]
[1737108168564,240.25,215.02,214.78,3.8256847]
[1737108168763,153.13,215.0,214.79,3.8256847]
[1737108168962,153.13,215.0,214.8,3.8256847]
[1737108169264,153.13,215.0,214.81,3.8256847]
[1737108169465,153.13,215.0,214.77,6.46562161]
[1737108169665,4.6536,214.94,214.85,4.6553]
[1737108169963,153.13,215.0,214.85,4.6553]
[1737108170163,153.13,215.0,214.8,3.82629319]
[1737108170366,4.6552,214.87,214.76,12.72862161]
[1737108170567,4.6552,214.87,214.77,3.82675016]
[1737108170762,153.13,214.98,214.76,6.263]
[1737108170963,153.13,214.98,214.77,3.82675719]
[1737108171163,153.13,214.98,214.78,3.82675719]
[1737108171363,153.13,214.98,214.76,6.263]
[1737108171563,4.654,214.92,214.85,4.6554]
[1737108171766,157.95,214.98,214.78,3.82607868]
[1737108171967,157.95,214.98,214.79,3.82607868]
[1737108172167,153.13,214.98,214.8,3.82607868]
[1737108172471,4.6538,214.93,214.81,5.38317868]
[1737108172668,4.6538,214.93,214.81,1.5571]
[1737108173867,4.6538,214.93,214.88,4.6548]
[1737108174774,153.13,214.98,214.91,4.6541]
[1737108174775,4.6535,214.95,214.91,4.6541]
[1737108174968,153.13,214.98,214.91,4.6541]
[1737108175370,4.6533,214.96,214.91,4.6541]
[1737108175565,4.6533,214.96,214.92,4.6539]
[1737108176062,153.13,214.98,214.83,1.5174]
[1737108176263,153.13,214.98,214.9,4.6542]
[1737108176666,4.6535,214.94,214.9,4.6542]
[1737108176964,153.13,214.98,214.83,1.5174]
[1737108177172,157.7826,214.98,214.84,3.82969965]
[1737108177370,157.7826,214.98,214.85,3.82969965]
[1737108177570,157.7826,214.98,214.86,3.82969965]
[1737108177769,4.6529,214.97,214.93,4.6535]
[1737108181279,91.94,215.06,214.93,4.6535]
[1737108181479,91.94,215.06,214.9,4.6543]
[1737108182078,4.6537,214.94,214.9,4.6543]
[1737108182875,4.654,214.92,214.88,4.6546]
[1737108183479,4.6542,214.91,214.88,4.6546]
[1737108184674,4.6542,214.91,214.87,4.655]
[1737108185076,16.83398515,215.04,214.83,1.5174]
[1737108185282,16.83398515,215.04,214.88,4.6546]
[1737108185482,16.83398515,215.04,214.83,1.5174]
[1737108185784,4.6539,214.93,214.89,4.6544]
[1737108185985,16.83398515,215.04,214.89,4.6544]
[1737108186481,4.6541,214.92,214.89,4.6544]
[1737108187073,16.83398515,215.04,214.83,1.5174]
[1737108187278,4.6537,214.93,214.9,4.6543]
[1737108187679,7.53108515,215.04,214.83,1.5174]
[1737108187875,4.6528,214.98,214.84,3.83819937]
[1737108188082,91.94,215.06,214.85,3.83819937]
[1737108188275,91.94,215.06,214.83,1.5174]
[1737108188475,4.6528,214.98,214.84,3.83772326]
[1737108188678,4.6528,214.98,214.85,3.83772326]
[1737108188884,4.6528,214.98,214.86,3.83772326]
[1737108189080,4.82,215.07,214.83,1.5174]
[1737108189291,7.54138279,215.08,214.84,3.83791065]
[1737108189480,13.36250346,215.08,214.85,3.83791065]
[1737108189677,4.6523,215.0,214.95,4.6532]
[1737108190085,4.6525,214.99,214.95,4.6532]
[1737108192387,13.36250346,215.08,214.95,4.6532]
[1737108193590,13.36250346,215.08,214.9,1.4655]
[1737108193793,13.36250346,215.08,214.96,4.653]
[1737108194195,13.36250346,215.08,214.91,1.4334]
[1737108194890,4.6524,215.0,214.96,4.653]
[1737108196092,4.6524,215.0,214.97,4.6528]
[1737108196793,4.6525,214.99,214.96,4.6531]
[1737108199092,13.36250346,215.08,214.91,1.4334]
[1737108199294,5.82112067,215.08,214.91,1.4334]
[1737108199596,4.652,215.01,214.98,4.6525]
[1737108200292,12.38021857,215.09,214.91,1.4334]
[1737108200595,9.3012,215.08,214.91,1.4334]
[1737108200787,7.56021857,215.08,214.92,4.6539]
[1737108200992,4.6532,214.96,214.92,4.6539]
[1737108201696,4.6532,214.96,214.93,4.6537]
[1737108203097,9.3018,215.07,214.91,1.4334]
[1737108203294,7.56101441,215.08,214.9,1.4655]
[1737108203497,21.49101441,215.08,214.9,1.4655]
[1737108203791,5.83733929,215.07,214.9,1.4655]
[1737108203994,9.3023,215.05,214.9,1.4655]
[1737108204199,9.3023,215.05,214.88,4.6547]
[1737108204394,4.6543,214.91,214.87,4.655]
[1737108204597,9.3023,215.05,214.87,4.655]
[1737108205097,4.6544,214.9,214.87,4.655]
[1737108207001,13.93,215.07,214.85,4.6553]
[1737108207195,4.6547,214.89,214.85,4.6553]
[1737108207397,4.82,215.0,214.78,3.00563565]
[1737108207596,18.75,215.0,214.78,10.84383565]
[1737108207800,4.6557,214.84,214.78,10.84383565]
[1737108208802,153.13,214.98,214.78,6.02383565]
[1737108209103,16.86900906,214.97,214.78,3.0182]
[1737108209504,4.6562,214.82,214.78,3.0182]
[1737108211110,4.6564,214.81,214.78,3.0182]
[1737108211603,4.657,214.79,214.68,4.82]
[1737108211808,4.657,214.79,214.73,4.6579]
[1737108212211,4.6574,214.77,214.69,6.2585]
[1737108212413,4.6574,214.77,214.72,4.6583]
[1737108212711,7.56310906,214.89,214.69,6.2585]
[1737108212910,4.6566,214.8,214.75,4.6575]
[1737108214209,4.6556,214.85,214.75,4.6575]
[1737108214513,4.82,214.9,214.75,4.6575]
[1737108215113,4.6567,214.8,214.75,4.6575]
[1737108217013,4.6554,214.86,214.75,4.6575]
[1737108217213,4.82,214.9,214.75,4.6575]
[1737108217610,4.6568,214.8,214.75,4.6575]
[1737108217813,4.82,214.9,214.75,4.6575]
[1737108218213,4.657,214.79,214.75,4.6575]
[1737108219418,4.6576,214.76,214.72,4.6583]
[1737108219819,9.3094,214.89,214.75,4.6576]
[1737108220119,9.3094,214.89,214.66,5.40229652]
[1737108220318,4.6566,214.81,214.75,4.6576]
[1737108220618,9.3094,214.89,214.75,4.6576]
[1737108220813,4.6556,214.85,214.75,4.6576]
[1737108221021,9.3094,214.89,214.77,4.6572]
[1737108221212,87.18,214.92,214.74,4.82]
[1737108221417,4.6552,214.87,214.81,4.6562]
[1737108221817,87.18,214.92,214.75,4.6553]
[1737108222020,4.6555,214.86,214.8,4.6564]
[1737108222320,4.6555,214.86,214.75,4.6553]
[1737108222818,4.6555,214.86,214.8,4.6565]
[1737108223820,4.6558,214.84,214.78,4.6569]
[1737108225922,4.6558,214.84,214.75,4.6553]
[1737108225923,4.6558,214.84,214.79,4.6568]
[1737108227022,87.18,214.92,214.78,4.657]
[1737108227825,87.18,214.92,214.75,4.6553]
[1737108228421,87.18,214.92,214.75,9.3128]
[1737108228823,87.18,214.92,214.75,4.6553]
[1737108229020,87.18,214.92,214.76,4.6574]
[1737108229424,4.6565,214.81,214.76,4.6574]
[1737108230123,4.6566,214.8,214.76,4.6574]
[1737108230925,4.6568,214.79,214.76,4.6574]